[Event "Croatian Championship 2022"]
[Site "Split"]
[Date "2022.12.03"]
[Round "5.6"]
[White "Kurajica, Bojan"]
[Black "Brkic, Ante"]
[Result "1/2-1/2"]
[ECO "D37"]
[WhiteElo "2487"]
[BlackElo "2610"]
[Annotator "TA"]
[PlyCount "74"]
[EventDate "2022.11.29"]
[EventType "tourn"]
[EventCountry "CRO"]
[SourceTitle "playchess.com"]
[Source "ChessBase"]
[SourceQuality "1"]
[TimeControl "40/5400+30:1800+30"]

{[%evp 13,74,0,6,0,0,0,22,3,7,0,0,0,48,17,45,7,27,25,41,22,60,37,22,37,27,30,38,-75,0,0,28,-64,14,0,0,8,90,86,168,109,124,130,106,85,91,93,75,47,47,47,49,37,41,37,37,31,89,83,69,16,17,0,54]} 1. d4 {[%emt 0:00:06]} Nf6 {[%emt 0:00:08]} 2. Nf3 {[%emt 0:00:17]} d5 {[%emt 0:00:09]} 3. c4 {[%emt 0:00:18]} e6 {[%emt 0:00:06]} 4. e3 {[%emt 0:00:28]} Be7 {[%emt 0:00:41]} 5. Nc3 {[%emt 0:04:46]} O-O {[%emt 0:01:00]} 6. a3 {[%emt 0:00:45]} b6 {[%emt 0:13:42]} 7. cxd5 {[%emt 0:00:26]} exd5 {[%emt 0:00:06]} 8. Bd3 {[%emt 0:02:46] D37: Queen's Gambit Declined: 5 Bf4.} c5 {[%emt 0:22:12]} 9. O-O {[%emt 0:02:21] [#]} c4 $146 {[%emt 0:05:31]} ({Predecessor:} 9... cxd4 10. exd4 Bg4 11. Re1 Nc6 12. Bc2 Re8 13. Bg5 Qd7 14. Qd3 g6 15. Ne5 Nxe5 16. dxe5 Bf5 17. Qd2 Ne4 18. Bxe4 Bxg5 19. Qxd5 Qxd5 20. Bxd5 Rad8 21. Bb3 Bf4 {½-½ (21) Mukasa,P (1692)-Isiko,M (1649) Kampala 2018}) 10. Be2 {[%emt 0:06:59]} Nc6 {[%emt 0:04:17]} 11. b3 {[%emt 0:05:20]} cxb3 {[%emt 0:02:57]} 12. Qxb3 {[%emt 0:00:08]} Bf5 {[%emt 0:00:23]} (12... Bb7 $11) 13. Bb2 {[%emt 0:04:15]} Rc8 {[%emt 0:03:28]} 14. Rac1 {[%emt 0:06:33]} Bd6 {[%emt 0:06:36]} 15. Qa2 {[%emt 0:04:55]} Na5 {[%emt 0:07:12]} 16. Ne5 {[%emt 0:01:49]} (16. a4 {simplifies} Ne4 17. Ba6 Nxc3 18. Bxc3 Rc7 19. Bxa5 Rxc1 20. Rxc1 bxa5 21. Qb3) 16... Bb8 {[%emt 0:04:00][%cal Oa5c4]} 17. f4 {[%emt 0:09:46]} Nc4 {[%emt 0:03:11]} 18. Nxc4 {[%emt 0:07:00]} dxc4 {[%emt 0:00:03]} 19. Bxc4 {[%emt 0:00:28]} Ng4 {[%emt 0:04:41][%cal Od8h4]} 20. Rce1 {[%emt 0:03:07] [#]} (20. Nd1 $14 {stays ahead.}) 20... Qh4 {[%emt 0:04:11]} (20... Bxf4 $1 $17 21. Rxf4 (21. Bxf7+ $2 Rxf7 22. exf4 Qxd4+ 23. Kh1 Nf2+ 24. Rxf2 Qxf2 $19) 21... Qh4) 21. h3 $11 {[%emt 0:00:26]} Nf6 {[%emt 0:00:02][%cal Of5h3] Threatens to win with ...Bxh3!} 22. Bd5 {[%emt 0:12:10]} ({Better is} 22. Re2 $11) 22... Nxd5 {[%emt 0:10:07]} ({Black should play} 22... Qg3 $15 23. Re2 Bg4) 23. Qxd5 {[%emt 0:00:29]} Bd3 {[%emt 0:00:24]} 24. Rf2 {[%emt 0:00:09]} Qe7 {[%emt 0:00:13]} (24... Qg3 $11 {keeps the balance.}) 25. Qf3 $16 {[%emt 0:03:44]} Rfd8 {[%emt 0:02:56]} (25... f5 $16) 26. Rd1 {[%emt 0:03:58]} (26. Nd5 $18 Qd7 27. e4) 26... Bc4 {[%emt 0:00:04] [#]} 27. e4 $1 {[%emt 0:00:22][%cal Be3e4,Be4e5][%mdl 32] Prevents f5.} b5 {[%emt 0:00:46]} 28. e5 {[%emt 0:00:33]} a5 {[%emt 0:00:10]} 29. Ne4 {[%emt 0:00:53]} Bd5 {[%emt 0:00:47] And now ...f5 would win.} 30. Qe3 {[%emt 0:00:23]} f5 {[%emt 0:00:56]} 31. Nc5 {[%emt 0:01:53]} Ba7 {[%emt 0:00:36]} 32. Rc1 {[%emt 0:00:27]} b4 {[%emt 0:00:39]} 33. Kh2 {[%emt 0:02:20]} Rc6 {[%emt 0:00:30]} 34. Rfc2 {[%emt 0:01:21]} Rdc8 {[%emt 0:00:32]} (34... Rg6 $14) 35. axb4 {[%emt 0:02:34]} axb4 {[%emt 0:00:02]} 36. Qf2 {[%emt 0:04:38] Inhibits Qh4.} (36. Qd2 $14) 36... Rg6 $11 {[%emt 0:01:47]} 37. Qe3 {[%emt 0:00:29]} Rgc6 {[%emt 0:00:20] Weighted Error Value: White=0.24 (precise) /Black=0.22 (precise)} 1/2-1/2

[Event "Croatian Championship 2022"]
[Site "Split"]
[Date "2022.12.04"]
[Round "6.1"]
[White "Martinovic, Sasa"]
[Black "Brkic, Ante"]
[Result "1/2-1/2"]
[ECO "D81"]
[WhiteElo "2557"]
[BlackElo "2610"]
[Annotator "TA"]
[PlyCount "50"]
[EventDate "2022.11.29"]
[EventType "tourn"]
[EventCountry "CRO"]
[SourceTitle "playchess.com"]
[Source "ChessBase"]
[SourceQuality "1"]
[TimeControl "40/5400+30:1800+30"]

{[%evp 9,50,7,10,21,21,16,11,19,22,15,7,24,14,15,24,15,55,46,29,14,10,14,12,11,14,12,14,0,0,0,0,0,0,0,0,0,0,0,0,0,0,0,0]} 1. d4 {[%emt 0:00:01]} Nf6 {[%emt 0:00:09]} 2. c4 {[%emt 0:00:01]} g6 {[%emt 0:00:06]} 3. Nc3 {[%emt 0:00:01]} d5 {[%emt 0:00:07]} 4. Qb3 {[%emt 1:32:27]} dxc4 {[%emt 0:00:23]} 5. Qxc4 {[%emt 0:00:00]} c5 {[%emt 0:00:05]} 6. dxc5 {[%emt 0:00:00] D81: Grünfeld: 4 Qb3.} (6. Nf3 {simplifies} cxd4 7. Qxd4 Qxd4 8. Nxd4 Bg7 9. Ndb5) 6... Bg7 {[%emt 0:00:05]} 7. Nf3 {[%emt 0:00:00] [#]} O-O $146 {[%emt 0:00:06]} ({Predecessor:} 7... Be6 8. Qb5+ Qd7 9. e4 O-O 10. h3 Qc6 11. Ng5 Bd7 12. Qc4 h6 13. Nf3 Be6 {½-½ (49) Dobroruka,V (1952)-Apshankar,K (2023) ICCF email 2020}) 8. g3 {[%emt 0:00:00]} Be6 {[%emt 0:00:09]} 9. Qh4 {[%emt 0:00:00]} Nc6 {[%emt 0:00:08]} 10. Bg2 {[%emt 0:00:00]} Qa5 {[%emt 0:00:06]} 11. O-O {[%emt 0:00:00]} (11. Bh6 {simplifies} Qxc5 12. O-O Qc4 13. Qxc4 Bxc4 14. Bxg7 Kxg7 15. Nd2) 11... Qxc5 {[%emt 0:00:07]} 12. Bh6 {[%emt 0:00:00]} (12. Ng5 {simplifies} Qc4 13. Nxe6 Qxh4 14. gxh4 fxe6 15. Rd1) 12... Rfd8 {[%emt 0:00:08]} (12... Qc4 {simplifies} 13. Qxc4 Bxc4 14. Bxg7 Kxg7 15. Nd2 Be6) 13. Ng5 {[%emt 0:00:00]} Qc4 {[%emt 0:00:12] [#] White must now prevent ...Qxh4.} 14. Qxc4 {[%emt 0:00:00]} (14. e4 {is interesting.} Bxh6 15. Qxh6 Ne5 16. Rac1) 14... Bxc4 {[%emt 0:00:05] The position is equal.} 15. Bxg7 {[%emt 0:00:00]} Kxg7 {[%emt 0:00:07]} 16. Bxc6 {[%emt 0:00:00]} bxc6 {[%emt 0:00:07]} 17. Rfc1 {[%emt 0:00:00][%cal Bf1c1,Bc1c2,Bc2c4][%mdl 32]} a5 {[%emt 0:00:11]} 18. Rc2 {[%emt 0:00:00]} a4 {[%emt 0:00:09]} 19. Nge4 {[%emt 0:00:00]} Nxe4 {[%emt 0:00:06]} 20. Nxe4 {[%emt 0:00:00]} Be6 {[%emt 0:00:10]} 21. Kf1 {[%emt 0:00:00]} Bf5 {[%emt 0:00:09]} 22. Rc4 {[%emt 0:00:00]} Be6 {[%emt 0:00:05]} 23. Rc2 {[%emt 0:00:00]} Bf5 {[%emt 0:00:07]} 24. Rc4 {[%emt 0:00:00]} Be6 {[%emt 0:00:05]} 25. Rc2 {[%emt 0:00:00]} Bf5 {[%emt 0:00:06] Weighted Error Value: White=0.02 (flawless) /Black=0.04 (flawless)} 1/2-1/2

[Event "Croatian Championship 2022"]
[Site "Split"]
[Date "2022.12.04"]
[Round "6.2"]
[White "Saric, Ivan"]
[Black "Kurajica, Bojan"]
[Result "1-0"]
[ECO "B01"]
[WhiteElo "2674"]
[BlackElo "2487"]
[Annotator "TA"]
[PlyCount "45"]
[EventDate "2022.11.29"]
[EventType "tourn"]
[EventCountry "CRO"]
[SourceTitle "playchess.com"]
[Source "ChessBase"]
[SourceQuality "1"]
[TimeControl "40/5400+30:1800+30"]

{[%evp 9,45,66,66,52,50,55,103,97,101,108,118,127,199,206,221,202,263,241,385,357,320,321,429,415,693,681,712,550,1583,793,752,754,1554,1519,29983,29984,29990,29990]} 1. e4 {[%emt 0:00:03]} d5 {[%emt 0:00:18]} 2. exd5 {[%emt 0:00:04]} Qxd5 {[%emt 0:00:18]} 3. Nc3 {[%emt 0:00:04]} Qd6 {[%emt 0:00:34]} 4. d4 {[%emt 0:00:06]} g6 {[%emt 0:00:09]} 5. Nf3 {[%emt 0:00:53]} Bg7 {[%emt 0:00:20]} 6. Bg5 {[%emt 0:00:39] [#] B01: Scandinavian Defence.} (6. Nb5 $5 {[%cal Rb5d6]} Qb6 7. Be2 $14) 6... a6 $146 {[%emt 0:04:58]} ({Predecessor:} 6... h6 7. Nb5 Qd8 8. Bf4 Na6 9. Qd2 c6 10. Nc3 Nb4 11. Ne4 Nd5 12. Be5 Ngf6 13. Nxf6+ exf6 {0-1 (34) Heinrichs,V (1877)-Correa,J (1943) Blumenau 2010}) 7. Qd2 {[%emt 0:00:52]} b5 {[%emt 0:06:15]} (7... Nf6 $14) 8. a4 $16 {[%emt 0:06:42] White is better.} b4 {[%emt 0:07:07]} 9. Ne4 {[%emt 0:00:18]} Qd5 {[%emt 0:06:20]} 10. Bd3 {[%emt 0:04:06][%cal Bf1d3,Bd3c4,Bc4a2][%mdl 32] White is more active.} f5 {[%emt 0:12:50]} (10... Bf5 $16 {might work better.}) 11. Nc5 $18 {[%emt 0:05:56]} Nc6 {[%emt 0:05:58]} 12. c3 {[%emt 0:02:28]} e5 {[%emt 0:07:13] [#]} 13. Qe2 $1 {[%emt 0:07:24]} (13. cxb4 e4 $16) 13... Kf8 {[%emt 0:02:38]} (13... Nge7 $142 14. Bxe7 (14. Bxa6 Bxa6 15. Nxa6 Qa5 $14) 14... Nxe7) 14. Bc4 {[%emt 0:03:27]} (14. Bxa6 exd4 15. Bxc8 Qxc5 16. cxd4 Nxd4 17. Nxd4 Bxd4 $11) 14... Qd6 {[%emt 0:02:16]} 15. O-O {[%emt 0:06:13] aiming for Bb3.} (15. Bxa6 Bxa6 16. Nxa6 exd4 $17) 15... e4 {[%emt 0:10:13]} 16. Nd2 {[%emt 0:00:41]} Nge7 {[%emt 0:04:27]} (16... h6 $142) 17. Rae1 {[%emt 0:02:20][%cal Od2e4]} ({Not} 17. Bxa6 Bxa6 18. Nxa6 bxc3 19. bxc3 {[#]} Nxd4 $1 20. cxd4 Qxa6 21. Qxa6 Rxa6 $15) 17... bxc3 {[%emt 0:11:14]} 18. bxc3 {[%emt 0:00:10][%cal Od2e4] And now Ndxe4! would win.} Ng8 {[%emt 0:03:17]} 19. Ba2 {[%emt 0:02:52] Qc4 is the strong threat.} ({Stronger than} 19. Nxa6 Bxa6 20. Bxa6 Nxd4 21. cxd4 Qxa6 $11) 19... Nf6 {[%emt 0:04:20]} 20. f3 {[%emt 0:02:22][%cal Rf3e4]} exf3 {[%emt 0:02:14]} 21. Rxf3 {[%emt 0:00:35] Hoping for Re3.} Nxd4 {[%emt 0:06:06]} 22. cxd4 {[%emt 0:00:20]} Qxd4+ {[%emt 0:00:18]} 23. Kh1 {[%emt 0:00:36] White took control after the opening.   Weighted Error Value: White=0.04 (flawless) /Black=1.03} 1-0

[Event "Croatian Championship 2022"]
[Site "Split"]
[Date "2022.12.04"]
[Round "6.3"]
[White "Zelcic, Robert"]
[Black "Stevic, Hrvoje"]
[Result "1/2-1/2"]
[ECO "A01"]
[WhiteElo "2496"]
[BlackElo "2543"]
[Annotator "TA"]
[PlyCount "26"]
[EventDate "2022.11.29"]
[EventType "tourn"]
[EventCountry "CRO"]
[SourceTitle "playchess.com"]
[Source "ChessBase"]
[SourceQuality "1"]
[TimeControl "40/5400+30:1800+30"]

{[%evp 9,26,-6,-5,-9,0,-13,-8,-7,0,0,0,7,0,0,0,4,7,-6,7]} 1. b3 {[%emt 0:00:13]} g6 {[%emt 0:00:14]} 2. g3 {[%emt 0:00:03]} Bg7 {[%emt 0:00:05]} 3. c3 {[%emt 0:00:05]} d5 {[%emt 0:00:05]} 4. d4 {[%emt 0:00:03]} Nf6 {[%emt 0:00:05]} 5. Bg2 {[%emt 0:00:08]} O-O {[%emt 0:00:03][%cal Oc7c5] [#] The position is equal.} 6. Nf3 $146 {[%emt 0:00:05] A01: Nimzowitsch-Larsen Opening.} ({Predecessor:} 6. Nd2 b6 7. Ba3 Bb7 8. e3 Nbd7 9. Ne2 Re8 10. O-O e5 11. Qc2 c5 12. Rfe1 {0-1 (28) Khadhraoui,R (1588)-Azouz,B (2123) Hammamet 2015}) 6... a5 {[%emt 0:00:02]} 7. O-O {[%emt 0:00:09]} a4 {[%emt 0:00:02]} 8. Bb2 {[%emt 0:00:03]} axb3 {[%emt 0:00:02]} 9. axb3 {[%emt 0:00:17]} Rxa1 {[%emt 0:00:02]} 10. Bxa1 {[%emt 0:00:05]} c6 {[%emt 0:00:01]} 11. Nbd2 {[%emt 0:00:09]} Bf5 {[%emt 0:00:05]} 12. Nh4 {[%emt 0:00:06]} Be6 {[%emt 0:00:05]} 13. Nhf3 {[%emt 0:00:06]} Bf5 {[%emt 0:00:00] Not much happened in this game.   Weighted Error Value: White=0.04 (flawless) /Black=0.03 (flawless)} 1/2-1/2

[Event "Croatian Championship 2022"]
[Site "Split"]
[Date "2022.12.04"]
[Round "6.4"]
[White "Bukal, Vladimir Jr."]
[Black "Jovanovic, Zoran"]
[Result "1/2-1/2"]
[ECO "A46"]
[WhiteElo "2411"]
[BlackElo "2513"]
[Annotator "TA"]
[PlyCount "77"]
[EventDate "2022.11.29"]
[EventType "tourn"]
[EventCountry "CRO"]
[SourceTitle "playchess.com"]
[Source "ChessBase"]
[SourceQuality "1"]
[TimeControl "40/5400+30:1800+30"]

{[%evp 9,77,-6,0,-14,-21,-20,2,-20,0,0,16,-10,33,0,0,-39,-45,-72,-52,-85,-83,-93,-85,-80,-57,-143,-102,-121,-75,-84,-48,-47,-14,-29,0,-54,-27,-19,-16,-80,-73,-86,-79,-94,-79,-61,-65,-70,-67,-225,-167,-141,-43,-31,0,-99,-39,-59,0,0,0,0,0,0,0,0,0,0,0,0]} 1. d4 {[%emt 0:00:02] ChessBase II} d6 {[%emt 0:00:43]} 2. Nf3 {[%emt 0:00:08]} Nf6 {[%emt 0:00:42]} 3. Bg5 {[%emt 0:01:45]} Nbd7 {[%emt 0:00:39]} 4. Nbd2 {[%emt 0:00:27]} e5 {[%emt 0:00:21]} 5. dxe5 {[%emt 0:13:49]} dxe5 {[%emt 0:01:15]} 6. e4 {[%emt 0:00:30] A46: 1 d4 Nf6 2 Nf3 e6: Torre, London and Colle Systems.} Be7 {[%emt 0:15:07]} 7. Bc4 {[%emt 0:02:25]} O-O {[%emt 0:01:52]} 8. Qe2 {[%emt 0:00:41]} c6 {[%emt 0:02:01]} 9. a4 {[%emt 0:07:41] [#]} Ne8 $146 {[%emt 0:06:10]} ({Predecessor:} 9... Qc7 10. O-O Nc5 11. c3 Bg4 12. h3 Bh5 13. Qe3 b6 14. Nxe5 Nfxe4 15. Nxe4 Qxe5 16. Bxe7 Qxe7 17. Nxc5 Qxe3 18. fxe3 bxc5 {0-1 (37) Araiza Nieto,V (2010)-Martin Del Campo C,J (2215) Mexico City 1995 EXT 2000 [ChessBase II]}) 10. h4 {[%emt 0:05:31]} Nd6 {[%emt 0:02:14]} 11. O-O-O {[%emt 0:05:36]} Nxc4 {[%emt 0:04:08]} 12. Nxc4 {[%emt 0:01:03]} f6 {[%emt 0:00:27]} 13. Be3 {[%emt 0:15:16]} Qc7 $1 {[%emt 0:03:45] Inhibits Nd6.} 14. h5 {[%emt 0:00:14]} b5 {[%emt 0:02:37]} 15. Ncd2 {[%emt 0:20:21]} Nb6 {[%emt 0:13:06]} (15... bxa4 {keeps more tension.} 16. h6 g6 17. Qc4+ Kh8) 16. Nh4 {[%emt 0:01:33]} Nxa4 {[%emt 0:00:34]} 17. Nf5 {[%emt 0:01:55]} ({Only move:} 17. Ng6 $1 $15) 17... Bc5 {[%emt 0:06:09]} 18. Rh3 {[%emt 0:02:11]} Bxe3 {[%emt 0:12:20]} (18... Rf7 $142 19. Rg3 Kh8) 19. Qxe3 $17 {[%emt 0:03:13]} Bxf5 {[%emt 0:02:46]} 20. exf5 {[%emt 0:00:02]} h6 {[%emt 0:00:03] Threatening ...Rfd8.} 21. Ne4 {[%emt 0:02:55]} Kh8 {[%emt 0:05:31]} (21... Kh7 {looks sharper.} 22. Qa3 a5 23. Qd6 Rac8) 22. Qb3 {[%emt 0:03:51]} (22. b3 $11 Nb6 23. Qc5) 22... Rad8 {[%emt 0:01:52] Strongly threatening ...Rxd1+.} 23. Rhd3 {[%emt 0:01:02]} Rd4 $36 {[%emt 0:02:52][%mdl 2048] Black is pushing.} 24. f3 {[%emt 0:05:11] [#]} (24. Rxd4 $11 {remains equal.} exd4 25. f3) 24... Rxe4 $1 {[%emt 0:02:45]} 25. Qa3 {[%emt 0:00:19] Prevents Nc5.} (25. fxe4 Nc5) 25... b4 {[%emt 0:00:59]} 26. Qxa4 {[%emt 0:00:08]} Rd4 {[%emt 0:00:03]} 27. Rxd4 {[%emt 0:00:57]} exd4 {[%emt 0:00:07]} 28. Rxd4 {[%emt 0:00:11][%mdl 4096] Endgame KQR-KQR} a5 {[%emt 0:02:14]} 29. Qb3 $2 {[%emt 0:02:16]} (29. Kb1 $15) 29... Qh2 {[%emt 0:01:41]} 30. g4 {[%emt 0:02:09] [#]} Re8 {[%emt 0:00:51] Prevents Qe3.} ({Black should try} 30... c5 $1 $17 {[%cal Rc5d4]} 31. Rd2 Qf4) 31. Rd1 $15 {[%emt 0:00:14]} Qc7 {[%emt 0:01:07]} 32. Kb1 {[%emt 0:00:21] [#]} (32. Qc4 $11) 32... c5 $1 $17 {[%emt 0:00:18]} 33. Qa4 $1 {[%emt 0:01:00] Prevents c4.} Rd8 {[%emt 0:00:19]} (33... Re3 $15) 34. Rxd8+ $11 {[%emt 0:01:11] The position is equal.} Qxd8 {[%emt 0:00:01]} 35. Qb5 {[%emt 0:00:49]} a4 {[%emt 0:04:34]} 36. Qxa4 {[%emt 0:00:27]} Qd1+ {[%emt 0:00:09]} 37. Ka2 {[%emt 0:00:01]} Qxf3 {[%emt 0:00:15]} 38. Qe8+ {[%emt 0:00:19]} Kh7 {[%emt 0:00:01]} 39. Qg6+ {[%emt 0:00:18] Weighted Error Value: White=0.29 (precise) /Black=0.18 (very precise)} 1/2-1/2

[Event "Croatian Championship 2022"]
[Site "Split"]
[Date "2022.12.04"]
[Round "6.5"]
[White "Bosiocic, Marin"]
[Black "Saric, Ante"]
[Result "1-0"]
[ECO "E07"]
[WhiteElo "2536"]
[BlackElo "2504"]
[Annotator "TA"]
[PlyCount "57"]
[EventDate "2022.11.29"]
[EventType "tourn"]
[EventCountry "CRO"]
[SourceTitle "playchess.com"]
[Source "ChessBase"]
[SourceQuality "1"]
[TimeControl "40/5400+30:1800+30"]

{[%evp 14,57,13,-5,46,40,37,31,54,51,42,0,13,0,0,0,0,0,25,0,33,46,36,41,130,137,137,151,155,141,204,185,191,189,515,504,514,508,483,489,685,672,720,712,658,655]} 1. d4 {[%emt 0:00:03]} Nf6 {[%emt 0:00:09]} 2. c4 {[%emt 0:00:06]} e6 {[%emt 0:00:11]} 3. Nf3 {[%emt 0:00:04][%cal Bg1f3,Bf3d2,Bd2c4][%mdl 32]} d5 {[%emt 0:00:07]} 4. g3 {[%emt 0:00:04]} Be7 {[%emt 0:00:05]} 5. Bg2 {[%emt 0:00:19]} O-O {[%emt 0:00:06]} 6. O-O {[%emt 0:00:04]} Nbd7 {[%emt 0:00:03]} 7. Nc3 {[%emt 0:01:13]} c6 {[%emt 0:02:50]} 8. Nd2 {[%emt 0:02:50]} b6 {[%emt 0:14:41] E07: Closed Catalan: Main Line (5 Nf3 0-0 6 0-0 Nbd7).} (8... b5 $11) 9. e4 $14 {[%emt 0:00:12]} dxc4 {[%emt 0:04:03] 9...Ba6 is a critical line.} 10. Nxc4 {[%emt 0:02:19]} Ba6 {[%emt 0:00:32] White is slightly better.} 11. b3 {[%emt 0:00:37]} e5 {[%emt 0:11:56] [#]} 12. Be3 $5 $146 {[%emt 0:12:32][%mdl 8] New and interesting.} ({Predecessor:} 12. Ne2 Bxc4 13. bxc4 exd4 14. Nxd4 Ne5 15. Bf4 Nfd7 16. Qe2 Bc5 17. Rad1 Qc8 18. Bh3 {½-½ (51) Zhou,W (2635)-Xu,Y (2523) Xinghua 2016}) 12... Qc7 {[%emt 0:05:19]} 13. Qe2 {[%emt 0:10:30]} Rad8 {[%emt 0:09:17]} 14. Rfd1 {[%emt 0:03:16][%cal Bf1d1,Bd1d4,Bd4d6,Bd6c6,Bc6c7][%mdl 32]} exd4 {[%emt 0:03:33]} 15. Bxd4 {[%emt 1:03:51]} Nc5 {[%emt 0:02:26][%cal Od8d4]} 16. Rac1 {[%emt 0:00:00]} (16. e5 $5 {[%cal Re5f6]} Nd5 17. Ne4 $14) 16... Rxd4 {[%emt 0:15:31]} 17. Rxd4 {[%emt 0:00:00]} b5 $1 {[%emt 0:00:05] Prevents e5.} 18. e5 $1 {[%emt 0:00:00]} Nfd7 {[%emt 0:01:31]} ({Better is} 18... bxc4 $14 19. exf6 Bxf6 20. Rxc4 Rd8) 19. Nd6 $16 {[%emt 0:00:00] And now b4 would win.} b4 {[%emt 0:01:16] [#] Inhibits b4.} 20. Qe3 {[%emt 0:00:00] Na4 is the strong threat.} bxc3 {[%emt 0:00:30]} 21. Rxc3 {[%emt 0:00:00]} Bxd6 {[%emt 0:13:16]} (21... Qb6 $16) 22. Rxd6 $18 {[%emt 0:00:00][%cal Og2c6]} Re8 {[%emt 0:00:21]} 23. Rxc6 {[%emt 0:00:00]} (23. Rxc5 $2 {is the wrong capture.} Qxd6 24. exd6 Rxe3 $17) 23... Qxe5 {[%emt 0:03:03]} (23... Qa5 {is tougher.} 24. R6xc5 (24. R3xc5 Nxc5 25. Rxc5 Qxa2 $16) 24... Nxc5) 24. Qxe5 {[%emt 0:00:00] White is clearly winning.} Rxe5 {[%emt 0:00:24]} 25. Re3 {[%emt 0:00:00] Against Re1+} Rxe3 {[%emt 0:05:53]} 26. fxe3 {[%emt 0:00:00]} Bb7 {[%emt 0:02:04]} (26... Kf8 $142 27. b4 Bc4 28. bxc5 Bxa2) 27. Rc7 {[%emt 0:00:00][%mdl 64] [#] Discovered Attack} Bxg2 {[%emt 0:00:09]} 28. Kxg2 {[%emt 0:00:00]} Kf8 {[%emt 0:01:19]} 29. b4 {[%emt 0:00:00][%mdl 64] Deflection.   Weighted Error Value: White=0.07 (flawless) /Black=0.53} ({Weaker is} 29. Rxa7 Ke7 30. b4 Ne6 $16) 1-0

[Event "Croatian Championship 2022"]
[Site "Split"]
[Date "2022.12.04"]
[Round "6.6"]
[White "Kozul, Zdenko"]
[Black "Doric, Darko"]
[Result "1/2-1/2"]
[ECO "D27"]
[WhiteElo "2539"]
[BlackElo "2446"]
[Annotator "TA"]
[PlyCount "81"]
[EventDate "2022.11.29"]
[EventType "tourn"]
[EventCountry "CRO"]
[SourceTitle "playchess.com"]
[Source "ChessBase"]
[SourceQuality "1"]
[TimeControl "40/5400+30:1800+30"]

{[%evp 15,81,12,9,25,36,22,18,-7,0,0,0,0,0,-20,-10,-65,-13,-87,-80,-80,-87,-86,-88,-85,-76,-79,-85,-124,-14,-11,-6,-8,-8,-8,-6,-4,0,-2,0,-13,0,0,0,0,0,0,0,0,0,0,0,0,0,0,0,0,0,0,0,0,0,0,86,0,0,0,0,0]} 1. d4 {[%emt 1:31:00]} d5 {[%emt 0:01:52]} 2. c4 {[%emt 0:00:00]} dxc4 {[%emt 0:00:59]} 3. Nf3 {[%emt 0:00:00]} Nf6 {[%emt 0:00:12]} 4. e3 {[%emt 0:00:00]} e6 {[%emt 0:00:05]} 5. Bxc4 {[%emt 0:00:00]} c5 {[%emt 0:00:05]} 6. O-O {[%emt 0:00:00]} a6 {[%emt 0:00:05][%cal Ba7a6,Ba6b5,Bb5b4][%mdl 32]} 7. Bb3 {[%emt 0:00:00]} b5 {[%emt 0:00:50]} 8. a4 {[%emt 0:00:00]} Bb7 {[%emt 0:01:10] 8...b4 is not played anymore.} 9. axb5 {[%emt 0:00:00] D27: Queen's Gambit Accepted: Classical main line: 7 e4!? and 7 a4.} axb5 {[%emt 0:00:10]} 10. Rxa8 {[%emt 0:00:00]} Bxa8 {[%emt 0:00:07]} 11. Nc3 {[%emt 0:00:00]} c4 {[%emt 0:06:01]} 12. Bc2 {[%emt 0:00:00]} b4 {[%emt 0:00:19]} 13. Ba4+ {[%emt 0:00:00]} Nbd7 {[%emt 1:25:05]} 14. Na2 {[%emt 0:00:00]} ({But not} 14. Ne2 Bd6 $15) 14... Bd6 $36 {[%emt 0:00:00][%mdl 2048] [#] Black has some pressure.} 15. Bd2 $146 {[%emt 0:00:00]} (15. Ne5 $1 $11) ({Predecessor:} 15. Ne5 Qc7 16. Bd2 O-O 17. f4 Rb8 18. Qe2 Qa7 19. b3 c3 20. Be1 Nb6 21. Nc6 Bxc6 22. Bxc6 {0-1 (33) Seres,L (2371)-Song,E (2362) Budapest 2022}) 15... O-O {[%emt 0:00:00]} (15... Qa5 $1 $15 16. Ne5 O-O 17. Bxd7 c3 18. bxc3 Qxa2) 16. Bxd7 {[%emt 0:00:00]} (16. Bxb4 $11 Bxb4 17. Nxb4) 16... Qxd7 $17 {[%emt 0:00:00]} 17. Bxb4 {[%emt 0:00:00]} Bxb4 {[%emt 0:00:00]} 18. Nxb4 {[%emt 0:00:00]} Qb5 {[%emt 0:00:00]} 19. Na2 {[%emt 0:00:00][%cal Bb4a2,Ba2c3,Bc3d1][%mdl 32]} Bxf3 $1 {[%emt 0:00:00]} 20. gxf3 {[%emt 0:00:00]} Qxb2 {[%emt 0:00:00]} 21. Qb1 {[%emt 0:00:00] [#]} Rb8 {[%emt 0:00:00]} (21... Qe2 $1 $17 {And now ...Nd5 would win.} 22. Kg2 Nd5) 22. Nc3 $11 {[%emt 0:00:00]} Kf8 {[%emt 0:00:00]} 23. Qxb2 {[%emt 0:00:00]} Rxb2 {[%emt 0:00:00][%mdl 4096] Endgame KRN-KRN} 24. Rc1 {[%emt 0:00:00]} Nd5 {[%emt 0:00:00]} 25. Kf1 {[%emt 0:00:00]} Ke7 {[%emt 0:00:00]} 26. Nd1 {[%emt 0:00:00]} Rb4 {[%emt 0:00:00][%cal Bb2b4,Bb4a4,Ba4a3,Ba3f3][%mdl 32]} 27. Ke1 {[%emt 0:00:00]} f5 {[%emt 0:00:00]} 28. Kd2 {[%emt 0:00:00]} Ra4 {[%emt 0:00:00]} 29. Nc3 {[%emt 0:01:51]} Nxc3 {[%emt 0:02:33]} 30. Kxc3 {[%emt 0:00:10] KR-KR} f4 {[%emt 0:00:22]} 31. e4 {[%emt 0:04:07]} Ra3+ {[%emt 0:00:34]} 32. Kxc4 {[%emt 0:00:06]} Rxf3 {[%emt 0:00:02]} 33. Rc2 {[%emt 0:01:24]} g5 {[%emt 0:01:27]} 34. e5 {[%emt 0:00:42]} h5 {[%emt 0:03:14]} 35. d5 {[%emt 0:01:04]} exd5+ {[%emt 0:00:29]} 36. Kxd5 {[%emt 0:00:05]} g4 {[%emt 0:01:39]} 37. Ke4 {[%emt 0:01:31]} Ke6 {[%emt 0:00:27]} 38. h4 {[%emt 0:03:57]} Ra3 {[%emt 0:01:05]} (38... Ke7 $11 {remains equal.}) 39. Rc6+ {[%emt 0:00:56]} ({White should try} 39. Kxf4 $16 {aiming for Rc6+.} Rf3+ 40. Kg5 (40. Ke4 Rh3 $11)) 39... Kd7 {[%emt 0:00:02]} 40. Rd6+ {[%emt 0:00:00]} Ke7 {[%emt 0:00:00]} 41. Kxf4 {[%emt 0:17:02] Weighted Error Value: White=0.15 (very precise) /Black=0.14 (very precise)} 1/2-1/2